fUSD/lending_fUSD_20250911
["ID","MTS","AMOUNT","RATE_DAILY","PERIOD"]
[384898981,1757622645206,-439.93,0.00027397,7]
[384898984,1757622645215,-400.0,0.00027397,7]
[384898985,1757622645224,-400.0,0.00027397,7]
[384898988,1757622645233,-151.0,0.00027397,7]
[384898990,1757622645243,-400.0,0.00027397,7]
[384898992,1757622645252,-650.59,0.00027397,7]
[384898994,1757622645261,-1870.36,0.00027397,7]
[384898996,1757622645271,-915.23,0.00027397,7]
[384898997,1757622645279,-400.0,0.00027397,7]
[384899000,1757622645289,-400.0,0.00027397,7]
[384899002,1757622645298,-400.0,0.00027397,7]
[384899004,1757622645307,-377.44979943,0.00027397,7]
[384899006,1757622645317,-400.0,0.00027397,7]
[384899008,1757622645326,-400.0,0.00027397,7]
[384899009,1757622645335,-2556.02,0.00027397,7]
[384899012,1757622645345,-578.88,0.00027397,7]
[384899013,1757622645354,-400.0,0.00027397,7]
[384899016,1757622645363,-400.0,0.00027397,7]
[384899017,1757622645373,-151.0,0.00027397,7]
[384899019,1757622645382,-431.82,0.00027397,7]
[384899022,1757622645393,-151.0,0.00027397,7]
[384899023,1757622645402,-400.0,0.00027397,7]
[384899026,1757622645412,-1934.38,0.00027397,7]
[384899028,1757622645421,-1077.64,0.00027397,7]
[384899030,1757622645430,-155.135592,0.00027397,7]
[384899032,1757622645439,-1757.09,0.00027397,7]
[384899034,1757622645448,-1507.5,0.00027397,7]
[384899035,1757622645457,-924.54,0.00027397,7]
[384899037,1757622645466,-151.0,0.00027397,7]
[384899040,1757622645478,-406.35811174,0.00027397,7]
[384899042,1757622645487,-3019.39,0.00027397,7]
[384899044,1757622645497,-213.989715,0.00027397,7]
[384899046,1757622645507,-400.0,0.00027397,7]
[384899048,1757622645516,-372.0230625,0.00027397,7]
[384899050,1757622645525,-538.74,0.00027397,7]
[384899052,1757622645535,-400.0,0.00027397,7]
[384899054,1757622645546,-151.0,0.00027397,7]
[384899056,1757622645555,-1998.84,0.00027397,7]
[384899058,1757622645565,-400.0,0.00027397,7]
[384899060,1757622645574,-402.57244431,0.00027397,7]
[384899062,1757622645584,-400.0,0.00027397,7]
[384899064,1757622645593,-400.0,0.00027397,7]
[384899066,1757622645603,-400.0,0.00027397,7]
[384899068,1757622645612,-400.0,0.00027397,7]
[384899070,1757622645622,-400.0,0.00027397,7]
[384899072,1757622645631,-186.574776,0.00027397,7]
[384899074,1757622645640,-400.0,0.00027397,7]
[384899076,1757622645649,-403.70878956,0.00027397,7]
[384899078,1757622645659,-400.0,0.00027397,7]
[384899080,1757622645668,-400.0,0.00027397,7]
[384899082,1757622645678,-536.58,0.00027397,7]
[384899084,1757622645687,-400.0,0.00027397,7]
[384899086,1757622645698,-1589.66,0.00027397,7]
[384899088,1757622645707,-987.84,0.00027397,7]
[384899090,1757622645717,-157.334747,0.00027397,7]
[384899092,1757622645726,-400.0,0.00027397,7]
[384899094,1757622645735,-400.0,0.00027397,7]
[384899096,1757622645744,-400.0,0.00027397,7]
[384899098,1757622645754,-400.0,0.00027397,7]
[384899100,1757622645763,-400.0,0.00027397,7]
[384899101,1757622645772,-1555.37,0.00027397,7]
[384899103,1757622645782,-1675.22,0.00027397,7]
[384899105,1757622645795,-2246.14,0.00027397,7]
[384899108,1757622645804,-400.0,0.00027397,7]
[384899109,1757622645813,-1158.92,0.00027397,7]
[384899112,1757622645823,-568.28,0.00027397,7]
[384899113,1757622645832,-400.0,0.00027397,7]
[384899115,1757622645843,-500.0,0.00027397,7]
[384899117,1757622645852,-500.0,0.00027397,7]
[384899120,1757622645862,-500.0,0.00027397,7]
[384899122,1757622645871,-400.0,0.00027397,7]
[384899124,1757622645881,-400.0,0.00027397,7]
[384899126,1757622645892,-500.0,0.00027397,7]
[384899128,1757622645901,-507.05266699,0.00027397,7]
[384899130,1757622645911,-809.63,0.00027397,7]
[384899132,1757622645927,-400.0,0.00027397,7]
[384899135,1757622645936,-1380.17,0.00027397,7]
[384899137,1757622645946,-400.0,0.00027397,7]
[384899139,1757622645955,-400.0,0.00027397,7]
[384899141,1757622645965,-238.73671082,0.00027397,7]
[384899143,1757622645974,-400.0,0.00027397,7]
[384899145,1757622645983,-500.0,0.00027397,7]
[384899147,1757622645993,-400.0,0.00027397,7]
[384899149,1757622646002,-400.0,0.00027397,7]
[384899151,1757622646012,-500.0,0.00027397,7]
[384899152,1757622646023,-500.0,0.00027397,2]
[384899155,1757622646042,-500.0,0.00027397,7]
[384899157,1757622646055,-452.79,0.00027397,7]
[384899158,1757622646065,-400.0,0.00027397,7]
[384899160,1757622646076,-1530.58,0.00027397,7]
[384899162,1757622646086,-1698.32,0.00027397,7]
[384899164,1757622646095,-300.0,0.00027397,7]
[384899165,1757622646104,-400.0,0.00027397,7]
[384899166,1757622646113,-586.75,0.00027397,7]
[384899167,1757622646122,-400.0,0.00027397,7]
[384899168,1757622646131,-400.0,0.00027397,7]
[384899169,1757622646140,-808.84,0.00027397,7]
[384899170,1757622646149,-400.0,0.00027397,7]
[384899171,1757622646159,-400.0,0.00027397,7]
[384899172,1757622646167,-400.0,0.00027397,7]
[384899173,1757622646176,-2539.56,0.00027397,7]
[384899175,1757622646186,-1094.04,0.00027397,7]
[384899177,1757622646195,-827.46,0.00027397,7]
[384899179,1757622646204,-514.85,0.00027397,7]
[384899181,1757622646214,-400.0,0.00027397,7]
[384899183,1757622646223,-1556.44,0.00027397,7]
[384899185,1757622646233,-154.571086,0.00027397,7]
[384899187,1757622646242,-3508.88,0.00027397,7]
[384899189,1757622646252,-415.7470737,0.00027397,7]
[384899191,1757622646261,-400.0,0.00027397,7]
[384899193,1757622646271,-1849.78,0.00027397,7]
[384899195,1757622646280,-401.29,0.00027397,7]
[384899197,1757622646291,-682.15,0.00027397,7]
[384899199,1757622646300,-400.0,0.00027397,7]
[384899201,1757622646310,-1987.51,0.00027397,7]
[384899203,1757622646319,-500.0,0.00027397,7]
[384899205,1757622646329,-500.0,0.00027397,2]
[384899207,1757622646338,-686.78,0.00027397,7]
[384899210,1757622646348,-500.0,0.00027397,2]
[384899212,1757622646357,-500.0,0.00027397,2]
[384899214,1757622646367,-500.0,0.00027397,2]
[384899215,1757622646376,-500.0,0.00027397,2]
[384899218,1757622646386,-1957.24,0.00027397,7]
[384899220,1757622646395,-400.0,0.00027397,7]
[384899221,1757622646404,-3061.47,0.00027397,7]
[384899223,1757622646413,-400.0,0.00027397,7]
[384899226,1757622646423,-401.02544796,0.00027397,7]
[384899228,1757622646432,-400.0,0.00027397,7]
[384899230,1757622646441,-400.0,0.00027397,7]
[384899233,1757622646450,-400.0,0.00027397,7]
[384899234,1757622646460,-433.68831056,0.00027397,7]
[384899236,1757622646469,-400.0,0.00027397,7]
[384899238,1757622646478,-1011.16,0.00027397,7]
[384899240,1757622646487,-400.0,0.00027397,7]
[384899243,1757622646497,-400.0,0.00027397,7]
[384899244,1757622646506,-400.0,0.00027397,7]
[384899247,1757622646515,-400.0,0.00027397,7]
[384899248,1757622646525,-151.0,0.00027397,7]
[384899251,1757622646534,-682.29,0.00027397,7]
[384899253,1757622646545,-400.0,0.00027397,7]
[384899255,1757622646554,-151.0,0.00027397,7]
[384899257,1757622646563,-1012.16,0.00027397,7]
[384899259,1757622646572,-400.0,0.00027397,7]
[384899261,1757622646582,-465.61,0.00027397,7]
[384899263,1757622646592,-400.0,0.00027397,7]
[384899265,1757622646602,-2966.97,0.00027397,7]
[384899267,1757622646611,-402.30008101,0.00027397,7]
[384899269,1757622646620,-152.497537,0.00027397,7]
[384899271,1757622646629,-151.0,0.00027397,7]
[384899273,1757622646638,-2074.64,0.00027397,7]
[384899275,1757622646647,-404.98216171,0.00027397,7]
[384899277,1757622646656,-400.0,0.00027397,7]
[384899280,1757622646665,-400.0,0.00027397,7]
[384899283,1757622646675,-400.0,0.00027397,7]
[384899285,1757622646684,-400.0,0.00027397,7]
[384899287,1757622646694,-400.0,0.00027397,7]
[384899290,1757622646703,-400.0,0.00027397,7]
[384899293,1757622646712,-1000.0,0.00027397,7]
[384899295,1757622646721,-400.0,0.00027397,7]
[384899297,1757622646730,-2035.2,0.00027397,7]
[384899299,1757622646740,-400.0,0.00027397,7]
[384899301,1757622646750,-400.0,0.00027397,7]
[384899303,1757622646758,-1901.69,0.00027397,7]
[384899305,1757622646767,-400.0,0.00027397,7]
[384899307,1757622646776,-1759.04,0.00027397,7]
[384899309,1757622646785,-400.0,0.00027397,7]
[384899311,1757622646796,-400.0,0.00027397,7]
[384899313,1757622646805,-400.0,0.00027397,7]
[384899315,1757622646814,-400.0,0.00027397,7]
[384899317,1757622646823,-1317.41,0.00027397,7]
[384899319,1757622646832,-400.0,0.00027397,7]
[384899321,1757622646843,-400.0,0.00027397,7]
[384899323,1757622646852,-400.0,0.00027397,7]
[384899325,1757622646862,-2519.39,0.00027397,7]
[384899327,1757622646871,-2446.92,0.00027397,7]
[384899329,1757622646880,-652.71,0.00027397,7]
[384899331,1757622646890,-400.0,0.00027397,7]
[384899333,1757622646899,-1253.81,0.00027397,7]
[384899335,1757622646909,-400.0,0.00027397,7]
[384899337,1757622646919,-400.0,0.00027397,7]
[384899339,1757622646928,-400.0,0.00027397,7]
[384899341,1757622646938,-400.0,0.00027397,7]
[384899343,1757622646947,-1950.04,0.00027397,7]
[384899345,1757622646956,-2503.79,0.00027397,7]
[384899347,1757622646965,-400.0,0.00027397,7]
[384899349,1757622646975,-842.19,0.00027397,7]
[384899351,1757622646984,-2509.46,0.00027397,7]
[384899353,1757622646992,-400.0,0.00027397,7]
[384899355,1757622647001,-404.92491076,0.00027397,7]
[384899357,1757622647010,-593.65,0.00027397,7]
[384899359,1757622647020,-664.4,0.00027397,7]
[384899361,1757622647032,-400.0,0.00027397,7]
[384899363,1757622647043,-400.0,0.00027397,7]
[384899365,1757622647051,-828.55,0.00027397,7]
[384899367,1757622647061,-548.61432217,0.00027397,7]
[384899369,1757622647071,-1884.31,0.00027397,7]
[384899371,1757622647080,-400.0,0.00027397,7]
[384899373,1757622647089,-2028.47,0.00027397,7]
[384899375,1757622647098,-400.0,0.00027397,7]
[384899377,1757622647109,-722.14,0.00027397,7]
[384899379,1757622647121,-400.0,0.00027397,7]
[384899381,1757622647142,-2342.48,0.00027397,7]
[384899383,1757622647161,-400.0,0.00027397,7]
[384899385,1757622647171,-400.0,0.00027397,7]
[384899387,1757622647180,-400.0,0.00027397,7]
[384899389,1757622647189,-2052.03,0.00027397,7]
[384899391,1757622647198,-1546.28,0.00027397,7]
[384899392,1757622647208,-957.25,0.00027397,7]
[384899394,1757622647218,-400.0,0.00027397,7]
[384899396,1757622647231,-1862.62,0.00027397,7]
[384899399,1757622647241,-400.0,0.00027397,7]
[384899400,1757622647252,-400.0,0.00027397,7]
[384899402,1757622647263,-400.0,0.00027397,7]
[384899405,1757622647272,-400.0,0.00027397,7]
[384899407,1757622647281,-1517.01,0.00027397,7]
[384899409,1757622647290,-575.22,0.00027397,7]
[384899411,1757622647300,-400.0,0.00027397,7]
[384899413,1757622647310,-400.0,0.00027397,7]
[384899415,1757622647319,-400.0,0.00027397,7]
[384899417,1757622647328,-2128.6,0.00027397,7]
[384899419,1757622647339,-400.0,0.00027397,7]
[384899421,1757622647347,-513.48,0.00027397,7]
[384899423,1757622647356,-2923.55,0.00027397,7]
[384899425,1757622647366,-438.35,0.00027397,7]
[384899427,1757622647375,-500.0,0.00027397,7]
[384899429,1757622647384,-500.0,0.00027397,7]
[384899431,1757622647393,-500.0,0.00027397,7]
[384899433,1757622647403,-500.0,0.00027397,7]
[384899435,1757622647412,-2859.61,0.00027397,7]
[384899437,1757622647422,-415.15,0.00027397,7]
[384899439,1757622647432,-400.0,0.00027397,7]
[384899441,1757622647442,-400.0,0.00027397,7]
[384899443,1757622647451,-489.48,0.00027397,7]
[384899445,1757622647459,-500.0,0.00027397,2]
[384899447,1757622647468,-500.0,0.00027397,2]
[384899449,1757622647478,-500.0,0.00027397,2]
[384899451,1757622647486,-1494.92,0.00027397,7]
[384899453,1757622647495,-400.0,0.00027397,7]
[384899455,1757622647504,-400.0,0.00027397,7]
[384899457,1757622647513,-2982.24,0.00027397,7]
[384899459,1757622647523,-665.15,0.00027397,7]
[384899461,1757622647532,-400.0,0.00027397,7]
[384899463,1757622647543,-400.0,0.00027397,7]
[384899465,1757622647552,-400.0,0.00027397,7]
[384899467,1757622647561,-694.57,0.00027397,7]
[384899469,1757622647570,-1645.77,0.00027397,7]
[384899471,1757622647580,-1645.77,0.00027397,7]
[384899473,1757622647590,-1645.77,0.00027397,7]
[384899475,1757622647599,-400.0,0.00027397,7]
[384899477,1757622647609,-1645.77,0.00027397,7]
[384899479,1757622647620,-400.0,0.00027397,7]
[384899481,1757622647629,-400.0,0.00027397,7]
[384899483,1757622647639,-1645.77,0.00027397,7]
[384899485,1757622647650,-1645.77,0.00027397,7]
[384899488,1757622647659,-400.0,0.00027397,7]
[384899491,1757622647669,-435.83,0.00027397,7]
[384899493,1757622647678,-857.44,0.00027397,7]
[384899495,1757622647687,-400.0,0.00027397,7]
[384899497,1757622647696,-400.0,0.00027397,7]
[384899499,1757622647705,-151.0,0.00027397,7]
[384899501,1757622647714,-1569.84,0.00027397,7]
[384899503,1757622647723,-402.3540469,0.00027397,7]
[384899505,1757622647732,-151.0,0.00027397,7]
[384899507,1757622647741,-400.0,0.00027397,7]
[384899509,1757622647750,-2141.62,0.00027397,7]
[384899511,1757622647759,-400.0,0.00027397,7]
[384899513,1757622647768,-2747.82,0.00027397,7]
[384899515,1757622647777,-151.0,0.00027397,7]
[384899517,1757622647786,-400.0,0.00027397,7]
[384899519,1757622647796,-151.0,0.00027397,7]
[384899521,1757622647806,-400.0,0.00027397,7]
[384899523,1757622647816,-151.0,0.00027397,7]
[384899525,1757622647826,-151.0,0.00027397,7]
[384899527,1757622647835,-581.26,0.00027397,7]
[384899529,1757622647844,-400.0,0.00027397,7]
[384899531,1757622647853,-400.0,0.00027397,7]
[384899533,1757622647862,-400.0,0.00027397,7]
[384899535,1757622647871,-400.0,0.00027397,7]
[384899537,1757622647880,-400.0,0.00027397,7]
[384899539,1757622647890,-400.0,0.00027397,7]
[384899541,1757622647899,-546.08,0.00027397,7]
[384899543,1757622647908,-400.0,0.00027397,7]
[384899545,1757622647917,-1986.46,0.00027397,7]
[384899548,1757622647927,-400.0,0.00027397,7]
[384899549,1757622647937,-400.0,0.00027397,7]
[384899552,1757622647946,-542.07,0.00027397,7]
[384899554,1757622647955,-2415.15,0.00027397,7]
[384899556,1757622647965,-1328.28,0.00027397,7]
[384899558,1757622647974,-1533.76,0.00027397,7]
[384899560,1757622647983,-500.0,0.00027397,7]
[384899561,1757622647996,-500.0,0.00027397,7]
[384899563,1757622648005,-400.0,0.00027397,7]
[384899565,1757622648015,-500.0,0.00027397,7]
[384899568,1757622648026,-400.0,0.00027397,7]
[384899569,1757622648046,-743.16,0.00027397,7]
[384899586,1757622648064,-1356.87,0.00027397,7]
[384899589,1757622648305,-151.0,0.00027397,7]
[384899591,1757622648314,-400.0,0.00027397,7]
[384899593,1757622648323,-151.0,0.00027397,7]
[384899595,1757622648333,-430.44,0.00027397,7]
[384899597,1757622648342,-2174.17,0.00027397,7]
[384899599,1757622648351,-1922.52,0.00027397,7]
[384899601,1757622648361,-400.0,0.00027397,7]
[384899603,1757622648370,-400.0,0.00027397,7]
[384899605,1757622648380,-4240.21,0.00027397,5]
[384899607,1757622648389,-452.38,0.00027397,7]
[384899609,1757622648399,-400.0,0.00027397,7]
[384899611,1757622648409,-449.41,0.00027397,7]
[384899613,1757622648418,-400.0,0.00027397,7]
[384899615,1757622648427,-400.0,0.00027397,7]
[384899617,1757622648437,-400.0,0.00027397,7]
[384899619,1757622648446,-400.0,0.00027397,7]
[384899621,1757622648455,-1190.97,0.00027397,7]
[384899623,1757622648465,-400.0,0.00027397,7]
[384899625,1757622648474,-400.0,0.00027397,7]
[384899627,1757622648483,-400.0,0.00027397,7]
[384899629,1757622648493,-2029.27,0.00027397,7]
[384899631,1757622648502,-400.0,0.00027397,7]
[384899633,1757622648511,-400.0,0.00027397,7]
[384899635,1757622648521,-401.59973541,0.00027397,7]
[384899637,1757622648530,-151.0,0.00027397,7]
[384899639,1757622648540,-400.0,0.00027397,7]
[384899642,1757622648550,-151.0,0.00027397,7]
[384899644,1757622648559,-731.45,0.00027397,7]
[384899646,1757622648569,-2868.0,0.00027397,7]
[384899648,1757622648579,-400.0,0.00027397,7]
[384899650,1757622648588,-1907.89,0.00027397,7]
[384899651,1757622648597,-400.0,0.00027397,7]
[384899654,1757622648607,-400.0,0.00027397,7]
[384899656,1757622648616,-848.44,0.00027397,7]
[384899658,1757622648626,-945.67,0.00027397,7]
[384899659,1757622648636,-400.0,0.00027397,7]
[384899662,1757622648646,-400.0,0.00027397,7]
[384899664,1757622648655,-1851.64,0.00027397,7]
[384899665,1757622648665,-895.77,0.00027397,7]
[384899668,1757622648674,-2959.75,0.00027397,7]
[384899669,1757622648683,-400.0,0.00027397,7]
[384899672,1757622648694,-400.0,0.00027397,7]
[384899674,1757622648703,-1067.81,0.00027397,7]
[384899676,1757622648712,-2197.16,0.00027397,7]
[384899678,1757622648722,-400.0,0.00027397,7]
[384899680,1757622648731,-400.0,0.00027397,7]
[384899682,1757622648740,-402.00302888,0.00027397,7]
[384899683,1757622648749,-2320.35,0.00027397,7]
[384899686,1757622648759,-500.47,0.00027397,7]
[384899688,1757622648768,-400.0,0.00027397,7]
[384899690,1757622648778,-400.0,0.00027397,7]
[384899692,1757622648787,-400.0,0.00027397,7]
[384899694,1757622648798,-2061.45,0.00027397,7]
[384899695,1757622648808,-2112.0,0.00027397,7]
[384899697,1757622648817,-743.31,0.00027397,7]
[384899700,1757622648827,-400.0,0.00027397,7]
[384899701,1757622648836,-400.0,0.00027397,7]
[384899703,1757622648846,-400.0,0.00027397,7]
[384899705,1757622648856,-400.0,0.00027397,7]
[384899707,1757622648865,-400.0,0.00027397,7]
[384899710,1757622648875,-860.44,0.00027397,7]
[384899712,1757622648885,-400.0,0.00027397,7]
[384899714,1757622648894,-1598.21,0.00027397,7]
[384899716,1757622648904,-674.14,0.00027397,7]
[384899718,1757622648913,-400.0,0.00027397,7]
[384899719,1757622648924,-2372.8,0.00027397,7]
[384899721,1757622648933,-400.0,0.00027397,7]
[384899723,1757622648943,-2044.08,0.00027397,7]
[384899725,1757622648952,-400.0,0.00027397,7]
[384899728,1757622648961,-428.78,0.00027397,7]
[384899730,1757622648970,-1751.8,0.00027397,7]
[384899732,1757622648980,-400.0,0.00027397,7]
[384899734,1757622648989,-400.0,0.00027397,7]
[384899735,1757622648998,-460.19,0.00027397,7]
[384899738,1757622649007,-400.0,0.00027397,7]
[384899739,1757622649017,-400.0,0.00027397,7]
[384899742,1757622649026,-400.0,0.00027397,7]
[384899744,1757622649038,-400.0,0.00027397,7]
[384899745,1757622649048,-2753.5,0.00027397,7]
[384899747,1757622649057,-1354.12,0.00027397,7]
[384899749,1757622649066,-400.0,0.00027397,7]
[384899751,1757622649076,-444.68,0.00027397,7]
[384899753,1757622649086,-2499.53,0.00027397,7]
[384899755,1757622649095,-400.0,0.00027397,7]
[384899757,1757622649104,-400.0,0.00027397,7]
[384899759,1757622649115,-400.0,0.00027397,7]
[384899761,1757622649124,-400.0,0.00027397,7]
[384899763,1757622649134,-411.13,0.00027397,7]
[384899765,1757622649143,-400.0,0.00027397,7]
[384899767,1757622649152,-409.38,0.00027397,7]
[384899769,1757622649162,-400.0,0.00027397,7]
[384899771,1757622649171,-400.0,0.00027397,7]
[384899773,1757622649180,-1030.61,0.00027397,7]
[384899775,1757622649189,-400.0,0.00027397,7]
[384899777,1757622649199,-1948.71,0.00027397,7]
[384899779,1757622649208,-817.68,0.00027397,7]
[384899781,1757622649217,-401.77955541,0.00027397,7]
[384899783,1757622649227,-930.68,0.00027397,7]
[384899785,1757622649236,-550.76578505,0.00027397,7]
[384899787,1757622649245,-2360.55,0.00027397,7]
[384899789,1757622649254,-1334.15,0.00027397,7]
[384899791,1757622649264,-1042.95,0.00027397,7]
[384899793,1757622649273,-400.0,0.00027397,7]
[384899795,1757622649282,-400.0,0.00027397,7]
[384899797,1757622649292,-1902.68,0.00027397,7]
[384899799,1757622649301,-400.0,0.00027397,7]
[384899801,1757622649311,-153.459834,0.00027397,7]
[384899803,1757622649320,-500.0,0.00027397,2]
[384899805,1757622649329,-500.0,0.00027397,2]
[384899807,1757622649338,-151.0,0.00027397,7]
[384899809,1757622649347,-487.36412925,0.00027397,7]
[384899811,1757622649357,-151.0,0.00027397,7]
[384899814,1757622649367,-400.0,0.00027397,7]
[384899816,1757622649377,-500.0,0.00027397,7]
[384899818,1757622649386,-151.0,0.00027397,7]
[384899820,1757622649396,-151.0,0.00027397,7]
[384899822,1757622649405,-711.6,0.00027397,7]
[384899824,1757622649415,-701.43,0.00027397,7]
[384899826,1757622649424,-400.0,0.00027397,7]
[384899828,1757622649433,-151.0,0.00027397,7]
[384899829,1757622649443,-151.0,0.00027397,7]
[384899832,1757622649453,-400.0,0.00027397,7]
[384899834,1757622649463,-2603.34,0.00027397,7]
[384899836,1757622649472,-400.0,0.00027397,7]
[384899837,1757622649482,-400.0,0.00027397,7]
[384899838,1757622649491,-151.0,0.00027397,7]
[384899839,1757622649500,-400.0,0.00027397,7]
[384899840,1757622649509,-2472.32,0.00027397,7]
[384899841,1757622649519,-538.99,0.00027397,7]
[384899842,1757622649528,-151.0,0.00027397,7]
[384899843,1757622649538,-400.0,0.00027397,7]
[384899844,1757622649549,-400.0,0.00027397,7]
[384899845,1757622649559,-1031.83,0.00027397,7]
[384899846,1757622649568,-400.0,0.00027397,7]
[384899847,1757622649578,-151.0,0.00027397,7]
[384899848,1757622649587,-400.0,0.00027397,7]
[384899849,1757622649596,-400.0,0.00027397,7]
[384899850,1757622649606,-2055.8,0.00027397,7]
[384899851,1757622649615,-400.0,0.00027397,7]
[384899852,1757622649624,-400.0,0.00027397,7]
[384899853,1757622649634,-400.0,0.00027397,7]
[384899854,1757622649644,-400.0,0.00027397,7]
[384899855,1757622649653,-2225.23,0.00027397,7]
[384899856,1757622649662,-2323.36,0.00027397,7]
[384899857,1757622649671,-2136.41,0.00027397,7]
[384899858,1757622649681,-400.0,0.00027397,7]
[384899859,1757622649691,-400.0,0.00027397,7]
[384899860,1757622649701,-400.0,0.00027397,7]
[384899861,1757622649710,-652.04,0.00027397,7]
[384899862,1757622649719,-650.36,0.00027397,7]
[384899863,1757622649728,-400.0,0.00027397,7]
[384899864,1757622649737,-424.52,0.00027397,7]
[384899865,1757622649747,-979.88,0.00027397,7]
[384899866,1757622649756,-600.15,0.00027397,7]
[384899867,1757622649765,-400.0,0.00027397,7]
[384899868,1757622649775,-2667.55,0.00027397,7]
[384899869,1757622649784,-404.30497221,0.00027397,7]
[384899870,1757622649793,-400.0,0.00027397,7]
[384899871,1757622649803,-400.0,0.00027397,7]
[384899872,1757622649812,-1879.15,0.00027397,7]
[384899873,1757622649822,-400.0,0.00027397,7]
[384899874,1757622649831,-400.0,0.00027397,7]
[384899875,1757622649841,-400.0,0.00027397,7]
[384899876,1757622649851,-400.0,0.00027397,7]
[384899877,1757622649860,-400.0,0.00027397,7]
[384899878,1757622649870,-400.0,0.00027397,7]
[384899879,1757622649879,-400.0,0.00027397,7]
[384899880,1757622649889,-470.17,0.00027397,7]
[384899881,1757622649898,-698.15,0.00027397,7]
[384899882,1757622649907,-496.12,0.00027397,7]
[384899883,1757622649917,-400.0,0.00027397,7]
[384899884,1757622649927,-400.0,0.00027397,7]
[384899885,1757622649935,-400.0,0.00027397,7]
[384899886,1757622649945,-627.09,0.00027397,7]
[384899887,1757622649955,-400.0,0.00027397,7]
[384899888,1757622649964,-1343.5,0.00027397,7]
[384899889,1757622649973,-470.08880208,0.00027397,7]
[384899890,1757622649983,-1333.79,0.00027397,7]
[384899891,1757622649992,-1268.33,0.00027397,7]
[384899892,1757622650002,-500.0,0.00027397,7]
[384899893,1757622650012,-500.0,0.00027397,7]
[384899894,1757622650021,-500.0,0.00027397,7]
[384899895,1757622650032,-2090.88,0.00027397,7]
[384899896,1757622650043,-500.0,0.00027397,7]
[384899897,1757622650053,-500.0,0.00027397,7]
[384899898,1757622650063,-500.0,0.00027397,7]
[384899899,1757622650073,-600.11,0.00027397,7]
[384899900,1757622650083,-400.0,0.00027397,7]
[384899901,1757622650092,-400.0,0.00027397,7]
[384899902,1757622650102,-400.0,0.00027397,7]
[384899903,1757622650113,-2884.35,0.00027397,7]
[384899904,1757622650123,-400.0,0.00027397,7]
[384899905,1757622650132,-1550.34,0.00027397,7]
[384899906,1757622650142,-400.0,0.00027397,7]
[384899907,1757622650151,-444.85,0.00027397,7]
[384899908,1757622650161,-2156.77,0.00027397,7]
[384899909,1757622650170,-400.0,0.00027397,7]
[384899910,1757622650179,-400.0,0.00027397,7]
[384899911,1757622650190,-400.0,0.00027397,7]
[384899912,1757622650199,-400.0,0.00027397,7]
[384899913,1757622650208,-400.0,0.00027397,7]
[384899914,1757622650218,-151.0,0.00027397,7]
[384899915,1757622650228,-151.0,0.00027397,7]
[384899916,1757622650237,-296.54384132,0.00027397,7]